[Event "58th Akiba Rubinstein C 2022"]
[Site "Polanica-Zdroj"]
[Date "2022.08.17"]
[Round "5.3"]
[White "Marusenko, Petr"]
[Black "Twarogiel, Tadeusz"]
[Result "1/2-1/2"]
[ECO "D15"]
[WhiteElo "2075"]
[BlackElo "1767"]
[Annotator "NA RC"]
[PlyCount "50"]
[EventDate "2022.08.13"]
[EventCountry "POL"]
[SourceTitle "playchess.com"]
[Source "ChessBase"]
[SourceQuality "1"]
[TimeControl "40/5400+30:1800+30"]

1. d4 {[%emt 0:00:00]} d5 {[%emt 0:00:00]} 2. c4 {[%emt 0:00:27]} c6 {[%emt 0:00:00]} 3. Nc3 {[%emt 0:00:03]} Nf6 {[%emt 0:00:09]} 4. Nf3 {[%emt 0:00:17]} Bf5 {[%emt 0:00:44]} 5. e3 {[%emt 0:00:23]} e6 {[%emt 0:01:31]} 6. Nh4 {[%emt 0:00:09]} Be4 {[%emt 0:01:26]} 7. f3 {[%emt 0:00:08]} Bg6 {[%emt 0:00:08]} 8. Qb3 {[%emt 0:00:30]} Qb6 {[%emt 0:01:18]} 9. c5 {[%emt 0:00:15]} Qc7 {[%emt 0:01:27]} 10. Bd2 {[%emt 0:04:44]} Be7 {[%emt 0:00:38]} 11. g3 {[%emt 0:03:59]} Nbd7 {[%emt 0:01:04]} 12. Nxg6 {[%emt 0:02:19]} hxg6 {[%emt 0:00:24]} 13. Bd3 {[%emt 0:00:07]} e5 {[%emt 0:03:23]} 14. Qa3 {[%emt 0:07:49]} Nh5 {[%emt 0:02:42]} 15. Ne2 {[%emt 0:01:51]} Nhf6 {[%emt 0:06:33]} 16. b4 {[%emt 0:04:24]} O-O {[%emt 0:02:18]} 17. O-O {[%emt 0:00:57]} a6 {[%emt 0:01:27]} 18. Qb3 {[%emt 0:00:17]} Rfe8 {[%emt 0:03:26]} 19. a4 {[%emt 0:00:28]} Nh7 {[%emt 0:05:12]} 20. b5 {[%emt 0:07:51]} exd4 {[%emt 0:03:41]} 21. exd4 {[%emt 0:00:08]} Bg5 {[%emt 0:00:12]} 22. f4 {[%emt 0:09:26]} Bf6 {[%emt 0:00:19]} 23. Qc3 {[%emt 0:00:36]} Nhf8 {[%emt 0:00:43]} 24. bxa6 {[%emt 0:03:24]} bxa6 {[%emt 0:00:19]} 25. Qb4 {[%emt 0:12:59]} a5 1/2-1/2

[Event "58th Akiba Rubinstein C 2022"]
[Site "Polanica-Zdroj"]
[Date "2022.08.17"]
[Round "5.4"]
[White "Krupa, Jerzy"]
[Black "Zowada, Kazimierz"]
[Result "1-0"]
[ECO "B06"]
[WhiteElo "1771"]
[BlackElo "2041"]
[Annotator "NA RC"]
[PlyCount "44"]
[EventDate "2022.08.13"]
[EventCountry "POL"]
[SourceTitle "playchess.com"]
[Source "ChessBase"]
[SourceQuality "1"]
[TimeControl "40/5400+30:1800+30"]

1. e4 {[%emt 0:00:04]} g6 {[%emt 0:00:13]} 2. d4 {[%emt 0:00:20]} Bg7 {[%emt 0:00:06]} 3. Nc3 {[%emt 0:00:13]} c6 {[%emt 0:00:38]} 4. f4 {[%emt 0:00:46]} d5 {[%emt 0:00:41]} 5. e5 {[%emt 0:00:17]} f5 {[%emt 0:01:30]} 6. Be3 {[%emt 0:02:35]} Nh6 {[%emt 0:01:36]} 7. Nf3 {[%emt 0:03:13]} O-O {[%emt 0:00:19]} 8. Bd3 {[%emt 0:01:41]} Nd7 {[%emt 0:02:13]} 9. Qd2 {[%emt 0:02:38]} e6 {[%emt 0:00:19]} 10. O-O-O {[%emt 0:01:10]} b5 {[%emt 0:01:14]} 11. h3 {[%emt 0:00:50]} Qa5 {[%emt 0:01:13]} 12. Kb1 {[%emt 0:01:27]} b4 {[%emt 0:01:17]} 13. Ne2 {[%emt 0:00:37]} c5 {[%emt 0:01:33]} 14. dxc5 {[%emt 0:00:19]} Nxc5 {[%emt 0:00:07]} 15. Bxc5 {[%emt 0:00:25]} Qxc5 {[%emt 0:00:10]} 16. Ned4 {[%emt 0:00:09]} Bd7 {[%emt 0:01:03]} 17. Rdg1 {[%emt 0:01:12]} Qb6 {[%emt 0:01:05]} 18. g4 {[%emt 0:00:38]} a5 {[%emt 0:02:57]} 19. gxf5 {[%emt 0:03:42]} Nxf5 {[%emt 0:03:03]} 20. Bxf5 {[%emt 0:00:34]} gxf5 {[%emt 0:01:35]} 21. Qg2 {[%emt 0:09:33]} Rf7 {[%emt 0:00:48]} 22. Qg3 {[%emt 0:04:24]} h6 {[%emt 0:23:37]} 1-0

[Event "58th Akiba Rubinstein C 2022"]
[Site "Polanica-Zdroj"]
[Date "2022.08.17"]
[Round "5.5"]
[White "Wziatek, Marek"]
[Black "Pyka, Roman"]
[Result "0-1"]
[ECO "A34"]
[WhiteElo "1617"]
[BlackElo "1881"]
[Annotator "NA RC"]
[PlyCount "96"]
[EventDate "2022.08.13"]
[EventCountry "POL"]
[SourceTitle "playchess.com"]
[Source "ChessBase"]
[SourceQuality "1"]
[TimeControl "40/5400+30:1800+30"]

1. c4 {[%emt 0:00:04]} Nf6 {[%emt 0:00:37]} 2. Nc3 {[%emt 0:00:09]} c5 {[%emt 0:00:37]} 3. g3 {[%emt 0:00:31]} d5 {[%emt 0:00:11]} 4. cxd5 {[%emt 0:00:14]} Nxd5 {[%emt 0:00:09]} 5. Bg2 {[%emt 0:00:03]} Nc7 {[%emt 0:00:10]} 6. Nf3 {[%emt 0:01:00]} Nc6 {[%emt 0:00:08]} 7. O-O {[%emt 0:00:30]} e5 {[%emt 0:00:06]} 8. d3 {[%emt 0:00:06]} Be7 {[%emt 0:00:28]} 9. Be3 {[%emt 0:04:28]} O-O {[%emt 0:02:47]} 10. Rc1 {[%emt 0:00:23]} Be6 {[%emt 0:03:58]} 11. Nd2 {[%emt 0:03:24]} Qd7 {[%emt 0:08:10]} 12. Qa4 {[%emt 0:04:05]} Nd4 {[%emt 0:07:47]} 13. Qxd7 {[%emt 0:00:43]} Bxd7 {[%emt 0:00:07]} 14. f4 {[%emt 0:01:21]} Nf5 {[%emt 0:03:45]} 15. Bf2 {[%emt 0:00:36]} exf4 {[%emt 0:00:18]} 16. gxf4 {[%emt 0:00:02]} Rab8 {[%emt 0:03:28]} 17. Nd5 {[%emt 0:05:47]} Nxd5 {[%emt 0:01:03]} 18. Bxd5 {[%emt 0:00:02]} b6 {[%emt 0:03:51]} 19. e4 {[%emt 0:03:00]} Nd6 {[%emt 0:05:17]} 20. Nc4 {[%emt 0:00:30]} Nxc4 {[%emt 0:01:26]} 21. dxc4 {[%emt 0:01:33]} Rfd8 {[%emt 0:03:37]} 22. Bg3 {[%emt 0:02:41]} Bd6 {[%emt 0:03:39]} 23. e5 {[%emt 0:06:24]} Bc7 {[%emt 0:00:12]} 24. f5 {[%emt 0:00:54]} Be8 {[%emt 0:03:14]} 25. Bh4 {[%emt 0:03:18]} Rxd5 {[%emt 0:02:44]} 26. cxd5 {[%emt 0:00:22]} Bxe5 {[%emt 0:00:06]} 27. Rc2 {[%emt 0:02:49]} f6 {[%emt 0:00:35]} 28. Bg3 {[%emt 0:01:28]} Bd4+ {[%emt 0:00:14]} 29. Kg2 {[%emt 0:00:57]} Rd8 {[%emt 0:01:18]} 30. Re1 {[%emt 0:02:58]} Bd7 {[%emt 0:01:22]} 31. Rce2 {[%emt 0:01:38]} Bxf5 {[%emt 0:01:13]} 32. Re8+ {[%emt 0:00:18]} Rxe8 {[%emt 0:00:08]} 33. Rxe8+ {[%emt 0:00:01]} Kf7 {[%emt 0:00:05]} 34. Re1 {[%emt 0:05:13]} Bxb2 {[%emt 0:03:42]} 35. d6 {[%emt 0:00:07]} Be6 {[%emt 0:00:10]} 36. Rd1 {[%emt 0:03:08]} Bd4 {[%emt 0:00:18]} 37. Bf2 {[%emt 0:00:14]} Bd5+ {[%emt 0:03:10]} 38. Kg1 {[%emt 0:00:13]} Ke6 {[%emt 0:00:09]} 39. d7 {[%emt 0:02:37]} Kxd7 {[%emt 0:00:14]} 40. Bxd4 {[%emt 0:00:00]} cxd4 {[%emt 0:00:00]} 41. Rxd4 {[%emt 0:00:16]} Kc6 {[%emt 0:00:25]} 42. a3 {[%emt 0:00:13]} g5 {[%emt 0:01:38]} 43. Kf2 {[%emt 0:00:15]} Kc5 {[%emt 0:01:13]} 44. Ke3 {[%emt 0:00:23]} b5 {[%emt 0:00:13]} 45. Kd3 {[%emt 0:00:55]} f5 {[%emt 0:00:15]} 46. Kc3 {[%emt 0:00:24]} f4 {[%emt 0:00:24]} 47. Rd1 {[%emt 0:07:47]} g4 {[%emt 0:01:36]} 48. Re1 {[%emt 0:00:41]} g3 {[%emt 0:01:23]} 0-1

[Event "58th Akiba Rubinstein C 2022"]
[Site "Polanica-Zdroj"]
[Date "2022.08.17"]
[Round "5.6"]
[White "Wrzos, Waldemar"]
[Black "Fikus, Zygmunt"]
[Result "0-1"]
[ECO "B24"]
[WhiteElo "1610"]
[BlackElo "1891"]
[Annotator "NA RC"]
[PlyCount "123"]
[EventDate "2022.08.13"]
[EventCountry "POL"]
[SourceTitle "playchess.com"]
[Source "ChessBase"]
[SourceQuality "1"]
[TimeControl "40/5400+30:1800+30"]

1. e4 {[%emt 0:00:06]} c5 {[%emt 0:00:18]} 2. Nc3 {[%emt 0:00:24]} Nc6 {[%emt 0:00:22]} 3. a3 {[%emt 0:00:35]} Nf6 {[%emt 0:03:17]} 4. Bc4 e6 {[%emt 0:00:25]} 5. d3 {[%emt 0:01:12]} Be7 {[%emt 0:00:27]} 6. Nge2 {[%emt 0:02:51]} O-O {[%emt 0:02:35]} 7. Bg5 {[%emt 0:02:24]} a6 {[%emt 0:05:21]} 8. O-O {[%emt 0:00:37]} b5 {[%emt 0:06:28]} 9. Ba2 {[%emt 0:00:27]} Bb7 {[%emt 0:03:34]} 10. Ng3 {[%emt 0:00:54]} h6 {[%emt 0:05:50]} 11. Bd2 {[%emt 0:01:43]} Rc8 {[%emt 0:02:22]} 12. f4 {[%emt 0:05:29]} Nd4 {[%emt 0:14:47]} 13. Nce2 Nxe2+ {[%emt 0:13:46]} 14. Qxe2 {[%emt 0:03:04]} d6 {[%emt 0:03:18]} 15. f5 {[%emt 0:02:07]} e5 {[%emt 0:00:19]} 16. Nh5 {[%emt 0:00:50]} d5 {[%emt 0:05:56]} 17. Nxf6+ {[%emt 0:00:56]} Bxf6 {[%emt 0:00:04]} 18. Rad1 {[%emt 0:02:36]} dxe4 {[%emt 0:00:28]} 19. dxe4 {[%emt 0:00:13]} Qd4+ {[%emt 0:00:42]} 20. Kh1 {[%emt 0:04:10]} Qxe4 {[%emt 0:01:55]} 21. Qxe4 {[%emt 0:00:36]} Bxe4 {[%emt 0:00:04]} 22. Be3 {[%emt 0:02:02]} Rfd8 {[%emt 0:04:54]} 23. Rxd8+ {[%emt 0:00:31]} Rxd8 {[%emt 0:00:04]} 24. h3 {[%emt 0:05:19]} c4 {[%emt 0:02:54]} 25. Bb1 {[%emt 0:01:03]} h5 {[%emt 0:07:03]} 26. Kh2 {[%emt 0:01:18]} h4 {[%emt 0:00:48]} 27. g4 {[%emt 0:02:07]} hxg3+ {[%emt 0:00:07]} 28. Kxg3 {[%emt 0:00:37]} a5 {[%emt 0:02:40]} 29. Kg4 {[%emt 0:01:52]} Rd5 {[%emt 0:03:11]} 30. h4 {[%emt 0:00:57]} b4 {[%emt 0:00:50]} 31. axb4 {[%emt 0:00:32]} axb4 {[%emt 0:00:06]} 32. Ba2 {[%emt 0:03:36]} b3 {[%emt 0:02:18]} 33. cxb3 {[%emt 0:00:56]} cxb3 {[%emt 0:00:03]} 34. Bb1 {[%emt 0:02:23]} Bxb1 {[%emt 0:01:18]} 35. Rxb1 {[%emt 0:00:03]} Rd3 {[%emt 0:01:34]} 36. Re1 {[%emt 0:00:26]} Rd5 {[%emt 0:03:26]} 37. Re2 {[%emt 0:00:48]} Ra5 {[%emt 0:01:19]} 38. Bg5 {[%emt 0:01:56]} Ra4+ {[%emt 0:01:39]} 39. Kg3 {[%emt 0:00:51]} Bxg5 {[%emt 0:01:52]} 40. hxg5 {[%emt 0:00:00]} f6 {[%emt 0:00:00]} 41. g6 {[%emt 0:00:54]} Kf8 {[%emt 0:00:49]} 42. Re3 {[%emt 0:01:10]} Rb4 {[%emt 0:00:57]} 43. Rc3 {[%emt 0:00:24]} Rb7 {[%emt 0:07:39]} 44. Rc8+ {[%emt 0:03:18]} Ke7 {[%emt 0:01:09]} 45. Rg8 Kd6 46. Kf3 {[%emt 0:05:33]} Rb4 {[%emt 0:01:49]} 47. Ke3 {[%emt 0:01:18]} Rf4 {[%emt 0:00:27]} 48. Rxg7 {[%emt 0:00:26]} Rxf5 {[%emt 0:00:11]} 49. Rf7 {[%emt 0:00:55]} Ke6 {[%emt 0:00:38]} 50. Rf8 {[%emt 0:03:06]} Rg5 {[%emt 0:00:34]} 51. Re8+ {[%emt 0:01:11]} Kd7 {[%emt 0:03:52]} 52. Rg8 {[%emt 0:00:21]} Ke7 {[%emt 0:00:45]} 53. Ke4 {[%emt 0:00:55]} Rg4+ {[%emt 0:01:59]} 54. Kf3 {[%emt 0:01:01]} f5 {[%emt 0:01:03]} 55. Rg7+ {[%emt 0:01:21]} Kf6 {[%emt 0:00:23]} 56. Rg8 {[%emt 0:02:03]} Rxg6 {[%emt 0:00:21]} 57. Rb8 {[%emt 0:00:48]} Rh6 {[%emt 0:03:47]} 58. Kg3 {[%emt 0:01:27]} f4+ {[%emt 0:00:23]} 59. Kg4 {[%emt 0:00:28]} Rg6+ {[%emt 0:00:13]} 60. Kf3 {[%emt 0:00:33]} Rg3+ {[%emt 0:00:08]} 61. Ke4 {[%emt 0:00:06]} Re3+ {[%emt 0:00:12]} 62. Kd5 0-1

[Event "58th Akiba Rubinstein C 2022"]
[Site "Polanica-Zdroj"]
[Date "2022.08.17"]
[Round "5.7"]
[White "Mazalon, Mariusz"]
[Black "Galyga, Jozef"]
[Result "1-0"]
[ECO "A93"]
[WhiteElo "1994"]
[BlackElo "1695"]
[Annotator "NA RC"]
[PlyCount "83"]
[EventDate "2022.08.13"]
[EventCountry "POL"]
[SourceTitle "playchess.com"]
[Source "ChessBase"]
[SourceQuality "1"]
[TimeControl "40/5400+30:1800+30"]

1. d4 {[%emt 0:00:15]} e6 {[%emt 0:00:06]} 2. c4 {[%emt 0:00:37]} f5 {[%emt 0:00:07]} 3. g3 {[%emt 0:01:56]} Nf6 {[%emt 0:00:11]} 4. Bg2 {[%emt 0:00:06]} d5 {[%emt 0:00:25]} 5. Nf3 {[%emt 0:00:24]} Be7 {[%emt 0:00:19]} 6. O-O {[%emt 0:00:33]} O-O 7. b3 {[%emt 0:02:14]} Nc6 {[%emt 0:05:23]} 8. Bb2 {[%emt 0:01:04]} Ne4 {[%emt 0:02:43]} 9. Nbd2 {[%emt 0:05:04]} Bd7 {[%emt 0:04:06]} 10. e3 {[%emt 0:16:31]} a5 {[%emt 0:00:23]} 11. a3 {[%emt 0:00:11]} Bf6 {[%emt 0:05:16]} 12. Ne5 {[%emt 0:07:40]} Qe7 {[%emt 0:03:10]} 13. Nd3 {[%emt 0:05:00]} a4 {[%emt 0:07:44]} 14. cxd5 {[%emt 0:04:27]} exd5 {[%emt 0:00:19]} 15. b4 {[%emt 0:00:19]} Na7 {[%emt 0:01:51]} 16. Nf4 {[%emt 0:04:05]} Qd6 {[%emt 0:00:38]} 17. Nf3 {[%emt 0:05:15]} Nc8 {[%emt 0:05:16]} 18. Qc2 {[%emt 0:03:24]} Bb5 {[%emt 0:09:07]} 19. Rfe1 {[%emt 0:03:29]} g5 {[%emt 0:07:51]} 20. Nd3 {[%emt 0:02:44]} Bxd3 {[%emt 0:03:02]} 21. Qxd3 {[%emt 0:00:02]} Bg7 {[%emt 0:09:26]} 22. Ne5 {[%emt 0:03:56]} g4 {[%emt 0:00:40]} 23. f3 {[%emt 0:07:23]} gxf3 {[%emt 0:00:52]} 24. Bxf3 {[%emt 0:00:02]} Qe7 {[%emt 0:02:35]} 25. Re2 {[%emt 0:04:30]} Ncd6 {[%emt 0:00:24]} 26. Rf1 {[%emt 0:00:25]} c6 {[%emt 0:00:38]} 27. Rg2 {[%emt 0:01:32]} Ng5 {[%emt 0:01:55]} 28. h4 {[%emt 0:01:39]} Ngf7 {[%emt 0:04:45]} 29. g4 {[%emt 0:01:00]} Kh8 {[%emt 0:07:09]} 30. Nxf7+ Rxf7 {[%emt 0:00:31]} 31. g5 {[%emt 0:04:52]} f4 {[%emt 0:01:21]} 32. Bh5 {[%emt 0:01:23]} Rff8 {[%emt 0:04:39]} 33. exf4 {[%emt 0:01:52]} Nf5 {[%emt 0:00:23]} 34. Re2 {[%emt 0:01:14]} Qd6 {[%emt 0:00:19]} 35. Bg4 {[%emt 0:01:23]} Nxh4 {[%emt 0:03:47]} 36. f5 {[%emt 0:02:10]} Rfe8 {[%emt 0:03:59]} 37. f6 {[%emt 0:05:59]} Bf8 {[%emt 0:00:15]} 38. Re5 {[%emt 0:00:11]} Rad8 {[%emt 0:01:56]} 39. Qh3 {[%emt 0:00:37]} Ng6 {[%emt 0:01:35]} 40. Bf5 {[%emt 0:00:00]} Nh4 41. Bg4 Ng6 42. Bf5 1-0

[Event "58th Akiba Rubinstein C 2022"]
[Site "Polanica-Zdroj"]
[Date "2022.08.17"]
[Round "5.8"]
[White "Sobotka, Jan"]
[Black "Szylko, Waldemar"]
[Result "0-1"]
[ECO "B12"]
[WhiteElo "1594"]
[BlackElo "1911"]
[Annotator "NA RC"]
[PlyCount "66"]
[EventDate "2022.08.13"]
[EventCountry "POL"]
[SourceTitle "playchess.com"]
[Source "ChessBase"]
[SourceQuality "1"]
[TimeControl "40/5400+30:1800+30"]

1. e4 {[%emt 0:00:05]} c6 {[%emt 0:00:09]} 2. d4 {[%emt 0:00:06]} d5 {[%emt 0:00:10]} 3. e5 {[%emt 0:00:04]} Bf5 {[%emt 0:00:12]} 4. Nf3 {[%emt 0:00:13]} e6 {[%emt 0:00:18]} 5. c4 {[%emt 0:00:23]} Ne7 {[%emt 0:00:29]} 6. Nh4 {[%emt 0:01:13]} Bg6 {[%emt 0:00:40]} 7. Bg5 {[%emt 0:01:31]} Qb6 {[%emt 0:01:02]} 8. Qd2 {[%emt 0:01:40]} Nd7 {[%emt 0:01:00]} 9. c5 {[%emt 0:01:46]} Qc7 {[%emt 0:00:29]} 10. Nc3 {[%emt 0:02:17]} b6 {[%emt 0:00:26]} 11. b4 {[%emt 0:01:55]} a5 {[%emt 0:01:26]} 12. bxa5 {[%emt 0:07:03]} bxc5 {[%emt 0:00:25]} 13. dxc5 {[%emt 0:11:20]} Qxe5+ {[%emt 0:02:51]} 14. Be3 {[%emt 0:06:57]} Qc7 {[%emt 0:02:14]} 15. Nxg6 {[%emt 0:10:32]} hxg6 {[%emt 0:00:12]} 16. a6 {[%emt 0:01:01]} e5 {[%emt 0:02:35]} 17. Be2 {[%emt 0:03:02]} d4 {[%emt 0:02:05]} 18. Bxd4 {[%emt 0:02:54]} exd4 {[%emt 0:00:16]} 19. Qxd4 {[%emt 0:00:11]} Nf5 {[%emt 0:02:21]} 20. Qe4+ {[%emt 0:02:20]} Be7 {[%emt 0:03:30]} 21. Nb5 {[%emt 0:02:04]} Qa5+ {[%emt 0:01:16]} 22. Kf1 {[%emt 0:00:15]} O-O {[%emt 0:01:09]} 23. Qxc6 {[%emt 0:01:48]} Nxc5 {[%emt 0:01:16]} 24. a7 {[%emt 0:02:56]} Rac8 {[%emt 0:01:45]} 25. Qf3 {[%emt 0:03:56]} Bf6 {[%emt 0:03:22]} 26. Rd1 {[%emt 0:05:18]} Qxa2 {[%emt 0:03:33]} 27. g4 {[%emt 0:00:37]} Nh4 {[%emt 0:00:54]} 28. Qd5 {[%emt 0:06:40]} Qa4 {[%emt 0:07:24]} 29. Qc4 {[%emt 0:05:15]} Qa5 {[%emt 0:13:03]} 30. Nd6 {[%emt 0:07:41]} Rcd8 {[%emt 0:03:33]} 31. Nb5 {[%emt 0:01:26]} Rxd1+ {[%emt 0:01:33]} 32. Bxd1 {[%emt 0:00:07]} Rd8 {[%emt 0:03:25]} 33. Ke2 {[%emt 0:03:22]} Qd2+ {[%emt 0:00:20]} 0-1

[Event "58th Akiba Rubinstein C 2022"]
[Site "Polanica-Zdroj"]
[Date "2022.08.17"]
[Round "5.9"]
[White "Kawula, Andrzej"]
[Black "Kruczynski, Marek"]
[Result "1-0"]
[ECO "A57"]
[WhiteElo "1870"]
[BlackElo "1651"]
[Annotator "NA RC"]
[PlyCount "57"]
[EventDate "2022.08.13"]
[EventCountry "POL"]
[SourceTitle "playchess.com"]
[Source "ChessBase"]
[SourceQuality "1"]
[TimeControl "40/5400+30:1800+30"]

1. d4 {[%emt 0:00:09]} Nf6 {[%emt 0:00:28]} 2. c4 {[%emt 0:00:14]} c5 {[%emt 0:00:40]} 3. d5 {[%emt 0:00:27]} a6 {[%emt 0:00:45]} 4. Nc3 {[%emt 0:00:36]} b5 {[%emt 0:00:47]} 5. cxb5 {[%emt 0:01:15]} axb5 {[%emt 0:00:30]} 6. Bg5 {[%emt 0:11:18]} b4 {[%emt 0:02:53]} 7. Bxf6 {[%emt 0:00:18]} gxf6 {[%emt 0:00:53]} 8. Ne4 {[%emt 0:01:02]} f5 {[%emt 0:02:20]} 9. Nxc5 {[%emt 0:05:25]} Bg7 {[%emt 0:00:47]} 10. Qd2 {[%emt 0:02:49]} Qb6 {[%emt 0:04:30]} 11. Nb3 {[%emt 0:00:42]} Bb7 {[%emt 0:11:43]} 12. e3 {[%emt 0:01:53]} O-O {[%emt 0:02:06]} 13. Nf3 {[%emt 0:00:30]} e5 {[%emt 0:02:43]} 14. Be2 {[%emt 0:02:21]} d6 {[%emt 0:01:33]} 15. O-O {[%emt 0:03:38]} Bf6 {[%emt 0:04:29]} 16. Rfc1 {[%emt 0:00:15]} Nd7 {[%emt 0:00:49]} 17. Rc4 {[%emt 0:00:50]} Ra4 18. a3 {[%emt 0:06:42]} Nc5 {[%emt 0:09:22]} 19. Nxc5 {[%emt 0:02:11]} dxc5 {[%emt 0:00:13]} 20. Rac1 {[%emt 0:00:42]} Rd8 {[%emt 0:08:03]} 21. Rxc5 {[%emt 0:02:45]} bxa3 {[%emt 0:03:26]} 22. bxa3 {[%emt 0:02:06]} Qd6 {[%emt 0:03:20]} 23. Qb2 {[%emt 0:09:20]} Ba8 {[%emt 0:03:44]} 24. Qb3 {[%emt 0:01:28]} Rg4 {[%emt 0:02:54]} 25. Ne1 {[%emt 0:07:14]} Bxd5 {[%emt 0:02:54]} 26. Qd1 {[%emt 0:04:47]} Rg6 {[%emt 0:06:07]} 27. Rc8 {[%emt 0:01:18]} Qe6 {[%emt 0:03:05]} 28. Rxd8+ {[%emt 0:03:27]} Bxd8 {[%emt 0:00:04]} 29. Rc5 {[%emt 0:00:44]} 1-0

[Event "58th Akiba Rubinstein C 2022"]
[Site "Polanica-Zdroj"]
[Date "2022.08.17"]
[Round "5.10"]
[White "Gregulski, Zbigniew"]
[Black "Krasowski, Slawomir"]
[Result "1/2-1/2"]
[ECO "D90"]
[WhiteElo "1591"]
[BlackElo "1855"]
[Annotator "NA RC"]
[PlyCount "66"]
[EventDate "2022.08.13"]
[EventCountry "POL"]
[SourceTitle "playchess.com"]
[Source "ChessBase"]
[SourceQuality "1"]
[TimeControl "40/5400+30:1800+30"]

1. d4 {[%emt 0:00:09]} Nf6 {[%emt 0:00:00]} 2. c4 {[%emt 0:00:15]} g6 {[%emt 0:00:00]} 3. Nc3 {[%emt 0:00:09]} d5 {[%emt 0:00:00]} 4. Nf3 {[%emt 0:01:13]} Bg7 {[%emt 0:00:08]} 5. g3 {[%emt 0:01:23]} c6 {[%emt 0:00:25]} 6. cxd5 {[%emt 0:00:40]} Nxd5 {[%emt 0:00:37]} 7. Bg2 {[%emt 0:00:22]} O-O {[%emt 0:00:48]} 8. O-O {[%emt 0:00:12]} Nd7 {[%emt 0:01:34]} 9. Nxd5 {[%emt 0:02:55]} cxd5 {[%emt 0:00:02]} 10. Bf4 {[%emt 0:00:39]} Nb6 {[%emt 0:03:49]} 11. Rc1 {[%emt 0:02:20]} Nc4 {[%emt 0:01:16]} 12. b3 {[%emt 0:00:19]} Nd6 {[%emt 0:00:08]} 13. Ne5 {[%emt 0:03:02]} Be6 {[%emt 0:02:04]} 14. Qd2 {[%emt 0:02:29]} Ne4 {[%emt 0:03:28]} 15. Qb2 {[%emt 0:01:34]} g5 {[%emt 0:04:23]} 16. Be3 {[%emt 0:00:19]} f6 {[%emt 0:00:40]} 17. Nd3 {[%emt 0:00:20]} b6 {[%emt 0:01:22]} 18. Rc2 {[%emt 0:11:53]} Qd7 19. Rfc1 {[%emt 0:08:31]} Rfc8 {[%emt 0:04:07]} 20. f3 {[%emt 0:01:28]} Nd6 {[%emt 0:00:57]} 21. Bf2 {[%emt 0:00:48]} Bf5 {[%emt 0:01:22]} 22. Rxc8+ {[%emt 0:00:59]} Rxc8 {[%emt 0:00:10]} 23. Ne1 {[%emt 0:05:33]} h5 {[%emt 0:09:37]} 24. e3 {[%emt 0:04:18]} e6 {[%emt 0:03:11]} 25. Bf1 {[%emt 0:00:22]} g4 {[%emt 0:00:23]} 26. Be2 {[%emt 0:01:18]} gxf3 {[%emt 0:03:34]} 27. Bxf3 {[%emt 0:00:47]} Bg6 {[%emt 0:00:15]} 28. Ng2 Bh6 {[%emt 0:07:14]} 29. Nf4 {[%emt 0:08:18]} Bxf4 {[%emt 0:00:29]} 30. gxf4 Kf7 {[%emt 0:11:13]} 31. Rxc8 {[%emt 0:01:58]} Qxc8 {[%emt 0:01:15]} 32. Qe2 {[%emt 0:01:45]} Qh8 {[%emt 0:04:54]} 33. Qa6 {[%emt 0:02:07]} Qb8 {[%emt 0:00:17]} 1/2-1/2

[Event "58th Akiba Rubinstein C 2022"]
[Site "Polanica-Zdroj"]
[Date "2022.08.17"]
[Round "5.11"]
[White "Bukowska, Katarzyna"]
[Black "Klama, Andrzej"]
[Result "1-0"]
[ECO "C00"]
[WhiteElo "1842"]
[BlackElo "1441"]
[Annotator "NA RC"]
[PlyCount "105"]
[EventDate "2022.08.13"]
[EventCountry "POL"]
[SourceTitle "playchess.com"]
[Source "ChessBase"]
[SourceQuality "1"]
[TimeControl "40/5400+30:1800+30"]

1. e4 {[%emt 0:00:03]} e6 {[%emt 0:00:12]} 2. d4 {[%emt 0:00:07]} b6 {[%emt 0:00:08]} 3. Nf3 {[%emt 0:00:22]} Bb7 {[%emt 0:00:15]} 4. Bd3 {[%emt 0:00:13]} Nf6 {[%emt 0:00:19]} 5. e5 {[%emt 0:00:57]} Nd5 {[%emt 0:00:20]} 6. c4 {[%emt 0:01:01]} Ne7 {[%emt 0:00:52]} 7. O-O {[%emt 0:00:53]} g6 8. Bg5 {[%emt 0:06:58]} d5 {[%emt 0:01:15]} 9. exd6 {[%emt 0:06:39]} cxd6 {[%emt 0:00:30]} 10. Bf6 {[%emt 0:01:52]} Rg8 {[%emt 0:01:01]} 11. Nc3 {[%emt 0:00:34]} Bg7 {[%emt 0:00:19]} 12. Bxg7 {[%emt 0:02:06]} Rxg7 {[%emt 0:00:30]} 13. Re1 {[%emt 0:04:52]} Kf8 {[%emt 0:04:06]} 14. Ne4 {[%emt 0:03:29]} Bxe4 {[%emt 0:04:48]} 15. Bxe4 {[%emt 0:00:22]} d5 {[%emt 0:00:07]} 16. cxd5 {[%emt 0:01:54]} exd5 {[%emt 0:00:22]} 17. Bd3 {[%emt 0:00:34]} Nbc6 {[%emt 0:00:50]} 18. Rc1 {[%emt 0:01:13]} f6 {[%emt 0:01:21]} 19. Re6 {[%emt 0:04:57]} Nb4 {[%emt 0:02:52]} 20. Rxf6+ {[%emt 0:01:46]} Kg8 {[%emt 0:00:25]} 21. a3 {[%emt 0:15:07]} Nxd3 {[%emt 0:00:53]} 22. Qxd3 {[%emt 0:00:05]} Nf5 {[%emt 0:01:43]} 23. Rfc6 {[%emt 0:01:17]} Re7 {[%emt 0:03:15]} 24. Ne5 {[%emt 0:04:40]} Qe8 {[%emt 0:02:33]} 25. f4 {[%emt 0:03:30]} Rd8 {[%emt 0:00:51]} 26. Rc7 {[%emt 0:07:23]} Rxc7 {[%emt 0:05:33]} 27. Rxc7 {[%emt 0:00:04]} Qa4 {[%emt 0:00:23]} 28. b4 {[%emt 0:04:26]} a5 29. Ng4 {[%emt 0:03:17]} Rd6 {[%emt 0:05:34]} 30. Qe2 {[%emt 0:02:27]} axb4 {[%emt 0:01:56]} 31. Rc8+ {[%emt 0:03:33]} Kf7 {[%emt 0:00:05]} 32. Ne5+ {[%emt 0:00:51]} Kg7 {[%emt 0:01:08]} 33. Nf3 {[%emt 0:01:01]} bxa3 {[%emt 0:01:52]} 34. Qe5+ {[%emt 0:00:29]} Kh6 {[%emt 0:00:07]} 35. Ng5 {[%emt 0:01:54]} Qxd4+ {[%emt 0:00:48]} 36. Qxd4 {[%emt 0:00:10]} Nxd4 {[%emt 0:00:32]} 37. Nf7+ {[%emt 0:00:03]} Kg7 {[%emt 0:01:01]} 38. Nxd6 {[%emt 0:00:04]} a2 {[%emt 0:00:45]} 39. Ra8 {[%emt 0:00:13]} Ne2+ {[%emt 0:00:43]} 40. Kf2 {[%emt 0:00:00]} Nc3 {[%emt 0:00:00]} 41. Ke3 {[%emt 0:01:18]} b5 {[%emt 0:00:19]} 42. Nxb5 {[%emt 0:00:40]} Nxb5 {[%emt 0:00:12]} 43. Rxa2 {[%emt 0:00:04]} Kf6 {[%emt 0:01:54]} 44. Ra5 {[%emt 0:00:27]} Nc7 {[%emt 0:00:31]} 45. Rc5 {[%emt 0:00:18]} d4+ {[%emt 0:00:15]} 46. Ke4 {[%emt 0:03:41]} Ne6 {[%emt 0:00:31]} 47. Rc6 {[%emt 0:01:18]} Ke7 {[%emt 0:05:12]} 48. Ke5 {[%emt 0:02:21]} Nd8 {[%emt 0:00:07]} 49. Rc7+ {[%emt 0:02:27]} Ke8 {[%emt 0:00:08]} 50. Ke4 {[%emt 0:01:06]} h5 {[%emt 0:00:44]} 51. Rg7 {[%emt 0:04:02]} Ne6 {[%emt 0:00:49]} 52. Rxg6 {[%emt 0:00:28]} Kf7 {[%emt 0:00:04]} 53. Rxe6 {[%emt 0:00:18]} 1-0